bitfinex-derivatives/quotes_ETHF0:USTF0_20250626
["timestamp","ask_amount","ask_price","bid_price","bid_amount"]
[1750922686258,0.52014,2498.2,2498.1,3.2078]
[1750922686866,0.52014,2498.2,2498.1,3.72796]
[1750922687067,0.52014,2498.2,2498.1,3.2078]
[1750922687256,0.52014,2498.2,2498.1,3.72796]
[1750922687563,0.52014,2498.2,2498.1,3.2078]
[1750922688664,0.5202,2497.9,2497.8,3.2078]
[1750922690064,0.5202,2497.9,2497.8,3.72802]
[1750922690367,0.5202,2497.9,2497.8,3.2078]
[1750922690867,0.5202,2497.9,2497.8,3.72802]
[1750922691371,0.5202,2497.9,2497.8,3.72801]
[1750922691665,0.52019,2498.0,2497.9,0.52019]
[1750922692158,1.30029,2498.3,2497.8,3.2078]
[1750922692365,0.5202,2498.0,2497.9,0.52018]
[1750922692666,0.5202,2497.9,2497.8,3.72801]
[1750922692962,0.52019,2498.0,2497.9,0.52017]
[1750922693462,0.5202,2497.9,2497.8,3.728]
[1750922693863,0.52019,2498.0,2497.9,0.52018]
[1750922694268,1.82687,2498.1,2498.0,0.52018]
[1750922694468,0.5202,2498.0,2497.9,0.52018]
[1750922695663,1.82687,2498.1,2498.0,0.52018]
[1750922697164,0.5202,2498.0,2497.9,0.52019]
[1750922697468,0.5202,2497.9,2497.8,3.72801]
[1750922697664,0.52031,2497.5,2497.4,3.2078]
[1750922697861,0.52028,2497.6,2497.5,0.52026]
[1750922698059,0.52028,2497.5,2497.4,3.72809]
[1750922698966,0.52027,2497.7,2497.6,0.52024]
[1750922699661,0.52028,2497.6,2497.5,0.52027]
[1750922701465,0.52025,2497.7,2497.6,0.52024]
[1750922701763,0.52019,2498.0,2497.9,0.5202]
[1750922701969,0.52016,2498.2,2498.1,0.52014]
[1750922702268,1.53555903,2498.2,2498.1,0.52014]
[1750922702560,4.50795,2498.6,2498.1,0.52014]
[1750922702561,3.2078,2499.0,2498.1,5.0]
[1750922702765,1.01540875,2498.9,2498.4,3.2078]
[1750922702972,1.53533229,2498.8,2498.7,0.52001]
[1750922703970,1.01531229,2498.8,2498.7,0.52001]
[1750922704869,1.86479,2498.9,2498.8,0.52001]
[1750922705073,2.87930312,2498.9,2498.8,0.52001]
[1750922706572,0.52002,2498.8,2498.7,0.52002]
[1750922706770,2.89453312,2498.8,2498.7,0.52002]
[1750922707069,0.52005,2498.7,2498.6,0.52004]
[1750922707269,1.53456312,2498.7,2498.6,0.52004]
[1750922708865,1.53456312,2498.7,2498.6,0.52005]
[1750922709169,0.51995,2499.2,2499.1,0.51994]
[1750922709470,7.92759692,2499.3,2499.0,3.2078]
[1750922709772,0.51995,2499.1,2499.0,3.72776]
[1750922710469,0.51994,2499.2,2499.1,0.51993]
[1750922711170,7.09511692,2499.3,2499.2,0.51993]
[1750922711471,1.91862,2499.3,2499.2,0.51993]
[1750922711664,0.51995,2499.2,2499.1,0.51994]
[1750922711865,1.85635,2499.2,2499.1,0.51994]
[1750922712573,0.51995,2499.1,2499.0,3.2078]
[1750922712870,0.52001,2498.8,2498.7,3.2078]
[1750922713070,0.52001,2498.8,2498.7,3.72782]
[1750922713270,0.52001,2498.8,2498.7,3.2078]
[1750922713469,0.52001,2498.8,2498.7,3.72783]
[1750922713881,0.52001,2498.8,2498.7,3.2078]
[1750922714367,1.53327348,2498.8,2498.7,3.2078]
[1750922714575,0.52009,2498.5,2498.4,0.52007]
[1750922714867,2.50994,2498.7,2498.6,0.52005]
[1750922715074,7.68643692,2498.7,2498.6,0.52005]
[1750922715273,7.68642692,2498.7,2498.6,0.52005]
[1750922715770,7.16639692,2498.7,2498.6,0.52005]
[1750922715973,1.9899,2498.7,2498.6,0.52005]
[1750922716276,2.50993,2498.7,2498.6,0.52005]
[1750922716662,0.52008,2498.6,2498.5,0.52006]
[1750922716866,1.87878,2498.6,2498.5,0.52006]
[1750922717373,1.3587,2498.6,2498.5,0.52006]
[1750922717976,1.87875,2498.6,2498.5,0.52006]
[1750922720476,1.3587,2498.6,2498.3,3.2078]
[1750922720677,1.3587,2498.6,2498.3,3.7279]
[1750922720678,0.52009,2498.4,2498.3,3.7279]
[1750922720875,0.52018,2498.1,2498.0,3.2078]
[1750922721078,0.52021,2498.0,2497.9,0.52018]
[1750922721384,1.4133,2498.0,2497.8,0.5202]
[1750922721575,0.52022,2497.9,2497.8,0.5202]
[1750922721777,0.52022,2497.8,2497.7,3.72802]
[1750922721977,1.93352,2497.8,2497.7,3.72802]
[1750922725881,1.93352,2497.8,2497.7,3.2078]
[1750922726173,8.12446944,2497.8,2497.7,3.2078]
[1750922726978,2.94797252,2497.8,2497.7,3.72804]
[1750922727181,1.53467252,2497.8,2497.7,3.72804]
[1750922727876,1.53467252,2497.8,2497.7,3.2078]
[1750922728677,2.21717252,2497.8,2497.7,3.2078]
[1750922730080,0.52028,2497.5,2497.4,4.4252]
[1750922730378,0.52028,2497.5,2497.4,3.9049]
[1750922730583,0.52028,2497.5,2497.4,3.7281]
[1750922731188,0.52027,2497.7,2497.6,0.52024]
[1750922732586,0.52028,2497.6,2497.5,0.52027]
[1750922733288,0.52034,2497.2,2497.1,0.6845]
[1750922734282,0.52036,2497.1,2497.0,3.72819]
[1750922734687,0.52036,2497.1,2497.0,3.2078]
[1750922734986,0.52036,2497.1,2497.0,3.72819]
[1750922735580,0.52036,2497.1,2497.0,3.2078]
[1750922736287,0.52043,2496.8,2496.7,3.2078]
[1750922736589,0.52043,2496.8,2496.7,3.72825]
[1750922736793,0.52041,2497.0,2496.9,0.52038]
[1750922737788,0.52041,2497.0,2496.9,1.19488]
[1750922738290,0.52041,2497.0,2496.9,0.6745]
[1750922738494,0.52041,2497.0,2496.9,1.19491]
[1750922740090,0.52041,2497.0,2496.9,0.6745]
[1750922740292,0.52041,2497.0,2496.7,4.6254]
[1750922740293,0.52043,2496.8,2496.7,3.2078]
[1750922740986,0.52043,2496.8,2496.7,3.72825]
[1750922741379,0.52042,2496.9,2496.8,0.52041]
[1750922741579,0.52038,2497.1,2497.0,0.52036]
[1750922741783,0.52038,2497.1,2497.0,3.72816]
[1750922741983,0.52038,2497.1,2497.0,3.2078]
[1750922742389,1.301,2497.0,2496.7,3.2078]
[1750922742590,0.52038,2497.1,2496.7,3.2078]
[1750922742591,0.52042,2496.9,2496.7,3.2078]
[1750922742793,0.52042,2496.9,2496.8,0.5204]
[1750922743908,8.1203,2497.3,2497.1,0.52035]
[1750922744192,0.52037,2497.2,2497.1,0.52035]
[1750922746493,0.52034,2497.2,2497.1,0.52035]
[1750922747287,4.6263,2497.5,2497.0,3.8668]
[1750922747499,0.52028,2497.6,2497.5,0.52027]
[1750922748384,1.53282863,2497.6,2497.5,0.52027]
[1750922748588,1.01254863,2497.6,2497.5,0.52027]
[1750922748887,1.53280863,2497.6,2497.5,0.52027]
[1750922749085,1.01254863,2497.6,2497.5,0.52027]
[1750922749594,1.53280863,2497.6,2497.5,0.52027]
[1750922750792,0.5203,2497.5,2497.4,0.52029]
[1750922750990,1.01254863,2497.5,2497.4,0.52029]
[1750922752302,0.52026,2497.7,2497.6,0.52026]
[1750922752596,1.53392214,2497.7,2497.6,0.52026]
[1750922753584,1.53390214,2497.7,2497.6,0.52026]
[1750922753983,1.01366214,2497.7,2497.6,0.52026]
[1750922754396,1.53390214,2497.7,2497.6,0.52026]
[1750922755097,1.01366214,2497.7,2497.6,0.52026]
[1750922755300,1.01366214,2497.7,2497.6,3.72806]
[1750922757695,35.0043,2498.1,2498.0,0.52018]
[1750922757696,7.90117,2498.1,2498.0,0.52018]
[1750922757995,1.01264287,2498.1,2498.0,3.72798]
[1750922758503,0.7024,2498.3,2498.2,0.52014]
[1750922758999,1.71450554,2498.3,2498.2,0.52014]
[1750922759792,2.23461554,2498.3,2498.2,0.52014]
[1750922760014,0.52016,2498.2,2498.1,0.52014]
[1750922760196,1.01210554,2498.2,2498.1,0.52014]
[1750922760696,0.52016,2498.1,2498.0,3.2078]
[1750922760896,1.53188991,2498.1,2498.0,3.2078]
[1750922761092,2.87248991,2498.1,2498.0,3.2078]
[1750922761706,8.04075116,2498.1,2498.0,3.2078]
[1750922762102,1.01172991,2498.1,2498.0,3.72798]
[1750922762402,1.22253,2498.3,2498.2,0.52014]
[1750922762603,2.23314016,2498.3,2498.2,0.52014]
[1750922763711,0.7024,2498.3,2498.2,0.52014]
[1750922764010,1.22251,2498.3,2498.2,0.52014]
[1750922764205,0.7024,2498.3,2498.2,0.52014]
[1750922764604,1.22251,2498.3,2498.2,0.52014]
[1750922765706,1.22251,2498.3,2498.0,3.2078]
[1750922765707,0.52016,2498.1,2498.0,3.2078]
[1750922765906,0.52023,2497.8,2497.7,3.72802]
[1750922766707,2.0528,2498.0,2497.7,3.2078]
[1750922766912,0.52017,2498.1,2498.0,0.52018]
[1750922767109,0.52017,2498.1,2498.0,3.72798]
[1750922767410,0.52015,2498.2,2498.1,0.52014]
[1750922767605,1.89543,2498.3,2498.2,0.52014]
[1750922767913,1.22251,2498.3,2498.2,0.52014]
[1750922768511,0.7024,2498.3,2498.2,0.52014]
[1750922768809,1.22251,2498.3,2498.2,0.52014]
[1750922768999,0.52015,2498.2,2498.1,0.52014]
[1750922769200,0.52016,2498.1,2498.0,3.72796]
[1750922770303,1.3604,2498.2,2498.1,0.52016]
[1750922771413,0.52015,2498.2,2498.1,0.52016]
[1750922771616,0.52016,2498.1,2498.0,3.72796]
[1750922772711,1.83645,2498.2,2498.1,0.52016]
[1750922772912,1.22252,2498.3,2498.2,0.52014]
[1750922773304,0.7024,2498.3,2498.2,0.52014]
[1750922774014,1.22251,2498.3,2498.2,0.52014]
[1750922775608,0.52016,2498.2,2498.1,0.52014]
[1750922775804,0.52016,2498.1,2498.0,3.72796]
[1750922777417,0.52016,2498.1,2498.0,3.2078]
[1750922777613,0.52016,2498.1,2498.0,3.72798]
[1750922777819,0.52015,2498.2,2498.1,0.52014]
[1750922778117,0.52016,2498.1,2498.0,3.2078]
[1750922778311,1.85716,2498.1,2498.0,3.2078]
[1750922779118,1.85716,2498.1,2498.0,3.72798]
[1750922784119,1.85716,2498.1,2498.0,3.2078]
[1750922785121,1.85716,2498.1,2498.0,3.72798]
[1750922785416,1.30049,2498.0,2497.6,4.42195]
[1750922785611,0.52024,2497.7,2497.6,4.42195]
[1750922786115,0.52024,2497.7,2497.6,3.72805]
[1750922786321,0.52024,2497.7,2497.6,3.72806]
[1750922786919,0.52024,2497.7,2497.6,3.2078]
[1750922787119,2.89162517,2497.7,2497.6,3.72806]
[1750922787311,2.89162517,2497.7,2497.6,3.2078]
[1750922789117,0.52035,2497.3,2497.2,3.2078]
[1750922789822,1.53496428,2497.3,2497.2,3.2078]
[1750922791021,0.52041,2497.0,2496.9,3.2078]
[1750922792016,1.01395288,2497.0,2496.5,3.2078]
[1750922792220,1.01395288,2496.9,2496.5,4.6222]
[1750922792424,0.52046,2496.7,2496.6,0.52046]
[1750922792919,0.52047,2496.6,2496.5,5.14267]
[1750922794221,0.52046,2496.7,2496.6,0.52045]
[1750922795228,0.52042,2496.9,2496.8,0.52041]
[1750922795620,0.52045,2496.8,2496.7,0.52043]
[1750922796435,0.52047,2496.6,2496.5,3.2078]
[1750922797319,1.94167,2496.6,2496.5,3.2078]
[1750922801431,0.52047,2496.6,2496.5,3.2078]
[1750922803437,0.52047,2496.6,2496.3,1.19202]
[1750922803438,0.52053,2496.3,2496.2,3.2078]
[1750922805231,0.52053,2496.3,2496.2,3.72835]
[1750922805427,0.52053,2496.3,2496.2,0.52055]
[1750922805631,3.2078,2495.3,2493.7,3.14146857]
[1750922805837,3.2078,2494.8,2494.2,3.2078]
[1750922806030,3.2078,2494.8,2494.3,2.0562]
[1750922806231,0.5209,2494.6,2494.3,5.264]
[1750922806531,3.2078,2494.8,2494.3,5.264]
[1750922806737,0.52093,2494.4,2494.3,2.0562]
[1750922807440,0.52102,2494.0,2493.8,7.8955]
[1750922807641,0.52102,2494.0,2493.9,2.0701]
[1750922808943,4.5101,2494.5,2493.9,2.0701]
[1750922809337,0.52101,2494.1,2493.9,2.0701]
[1750922809645,0.52098,2494.2,2493.9,2.0701]
[1750922809844,0.52101,2494.1,2493.9,2.0701]
[1750922810141,0.52101,2494.0,2493.9,2.0701]
[1750922810337,0.521,2494.1,2493.9,2.59113]
[1750922810842,4.5101,2494.5,2493.9,2.0701]
[1750922811239,0.52101,2494.0,2493.9,2.0701]
[1750922812541,0.521,2494.1,2493.9,2.59113]
[1750922813146,3.2078,2494.5,2494.0,3.2078]
[1750922813442,3.2078,2494.9,2494.7,0.52085]
[1750922813647,3.72863,2494.9,2494.8,0.52084]
[1750922813944,3.2078,2494.9,2494.8,0.52084]
[1750922814144,3.2078,2495.2,2495.0,0.52078]
[1750922814345,0.52084,2494.9,2494.6,3.2078]
[1750922814538,0.52084,2494.9,2494.7,1.36]
[1750922814739,0.52084,2494.9,2494.8,0.52084]
[1750922815845,0.52082,2495.0,2494.9,0.52081]
[1750922816039,0.5208,2495.1,2495.0,0.5208]
[1750922816240,3.2078,2495.2,2494.7,1.36]
[1750922816439,0.52082,2495.0,2494.9,0.52081]
[1750922817042,0.5208,2495.1,2495.0,0.52079]
[1750922817349,3.72857,2495.2,2495.1,0.52078]
[1750922817641,0.52076,2495.3,2495.2,0.52076]
[1750922817841,3.2078,2495.5,2495.4,0.52072]
[1750922818542,3.7285,2495.5,2495.2,2.7018]
[1750922818751,3.72851,2495.5,2495.4,0.52072]
[1750922818949,0.52071,2495.5,2495.4,0.52072]
[1750922820143,0.52068,2495.7,2495.6,0.52067]
[1750922820649,0.52069,2495.6,2495.5,0.52068]
[1750922821544,0.52074,2495.3,2495.2,1.3256]
[1750922821748,3.2078,2495.3,2494.5,7.237]
[1750922821946,0.52087,2494.8,2494.7,0.52085]
[1750922823648,0.52086,2494.7,2494.6,1.86228]
[1750922824252,3.72863,2494.9,2494.8,0.52084]
[1750922825542,0.52086,2494.7,2494.6,1.86227]
[1750922825951,0.52086,2494.7,2494.6,0.52087]
[1750922826756,0.52086,2494.8,2494.7,0.52084]
[1750922827351,0.52086,2494.8,2494.5,2.71327]
[1750922827554,0.52086,2494.8,2494.7,0.52084]
[1750922828360,0.52083,2494.9,2494.8,0.52082]
[1750922828545,3.72861,2495.0,2494.9,0.52082]
[1750922830455,3.7286,2495.0,2494.9,0.52082]
[1750922832255,0.52084,2494.9,2494.8,0.52083]
[1750922833358,0.52086,2494.8,2494.4,11.84708]
[1750922833650,0.52086,2494.8,2494.7,0.52085]
[1750922835253,1.58458018,2494.8,2494.7,0.52085]
[1750922835853,0.5209,2494.7,2494.6,0.52087]
[1750922836557,1.58469016,2494.7,2494.6,0.52087]
[1750922837055,0.52091,2494.6,2494.5,0.52089]
[1750922837458,0.52093,2494.5,2494.4,0.52091]
[1750922839042,0.52093,2494.4,2494.3,0.6634]
[1750922839449,1.58557128,2494.4,2494.3,0.66320349]
[1750922841856,1.06464128,2494.4,2494.3,0.27235932]
[1750922842057,1.58557128,2494.4,2494.3,0.27235932]
[1750922842359,1.58656868,2494.4,2494.3,0.27235932]
[1750922843955,0.52095,2494.3,2494.2,1.21765]
[1750922844155,1.58658868,2494.3,2494.2,0.52095]
[1750922844345,0.52099,2494.2,2494.1,0.52098]
[1750922844548,1.58662868,2494.2,2494.1,0.52098]
[1750922845346,0.52096,2494.3,2494.2,0.52093]
[1750922845750,1.58653436,2494.3,2494.2,0.52093]
[1750922850463,4.50986,2495.0,2494.2,7.0562272]
[1750922850763,1.5811998,2494.9,2494.8,0.52084]
[1750922850970,1.0603698,2494.9,2494.8,0.52084]
[1750922851268,1.5811898,2494.9,2494.8,0.52084]
[1750922851663,1.0603698,2494.9,2494.8,0.52084]
[1750922851862,1.0603698,2494.9,2494.6,3.34219]
[1750922852164,1.0603698,2494.8,2494.7,0.52086]
[1750922852365,1.58238392,2494.9,2494.8,0.52084]
[1750922852868,1.06155392,2494.9,2494.8,0.52084]
[1750922853067,1.58237392,2494.9,2494.8,0.52084]
[1750922853969,1.06155392,2494.9,2494.8,0.52084]
[1750922854168,1.58237392,2494.9,2494.8,0.52084]
[1750922854468,1.06155392,2494.9,2494.8,0.52084]
[1750922854670,1.58237392,2494.9,2494.8,0.52084]
[1750922856370,1.06155392,2494.9,2494.8,0.52084]
[1750922856862,1.06155392,2494.9,2494.8,1.20914]
[1750922858569,0.52078,2495.2,2495.1,0.52078]
[1750922858766,1.58171544,2495.2,2495.1,0.52078]
[1750922863985,1.58169544,2495.2,2495.1,0.52078]
[1750922865470,0.5208,2495.1,2495.0,0.52078]
[1750922865671,1.06093544,2495.1,2494.7,0.6637]
[1750922865879,1.58174544,2495.0,2494.9,0.5208]
[1750922866877,1.06093544,2495.0,2494.9,0.5208]
[1750922867279,1.58173544,2495.0,2494.9,0.5208]
[1750922872580,0.52084,2494.9,2494.8,0.52082]
[1750922872883,1.58177544,2494.9,2494.8,0.52082]
[1750922874278,4.12656948,2494.9,2494.8,0.52082]
[1750922874678,3.60572948,2494.9,2494.8,0.52082]
[1750922874985,1.58175544,2494.9,2494.8,0.52082]
[1750922875389,1.06093544,2494.9,2494.8,0.52082]
[1750922878288,1.58175544,2494.9,2494.8,0.52082]
[1750922882800,0.52086,2494.7,2494.6,1.4173]
[1750922883006,0.52093,2494.5,2494.4,0.52091]
[1750922883197,0.52099,2494.2,2494.1,0.52096]
[1750922883398,0.52099,2494.2,2493.9,11.64834]
[1750922883399,0.52101,2494.0,2493.9,1.22482]
[1750922883597,5.75259404,2494.0,2493.7,0.7127]
[1750922883795,1.58198544,2493.9,2493.8,0.52104]
[1750922884095,0.52105,2493.8,2493.7,1.23376]
[1750922884294,1.06093544,2493.8,2493.7,1.23376]
[1750922884499,3.2078,2494.3,2494.2,0.52097]
[1750922884699,3.72876,2494.3,2494.2,0.52097]
[1750922885306,3.2078,2494.3,2494.2,0.52097]
[1750922885603,3.72875,2494.3,2494.2,0.52097]
[1750922885804,3.2078,2494.3,2494.2,0.52097]
[1750922886304,0.6506,2494.5,2494.4,0.52093]
[1750922887404,7.65986,2494.8,2494.4,0.52093]
[1750922887608,1.17836,2494.8,2494.7,0.52086]
[1750922889407,0.5209,2494.6,2494.5,0.52091]
[1750922889706,0.52088,2494.7,2494.6,0.52087]
[1750922890304,3.06567404,2494.7,2494.6,0.52087]
[1750922892708,2.54479404,2494.7,2494.4,2.0734]
[1750922892905,0.52088,2494.7,2494.6,0.52089]
[1750922893201,3.20229404,2494.8,2494.4,2.0734]
[1750922893410,0.52091,2494.5,2494.4,1.23021]
[1750922896313,0.52091,2494.5,2494.4,0.7093]
[1750922896512,0.52097,2494.2,2494.1,8.91957]
[1750922900113,0.52097,2494.2,2494.1,7.60697]
[1750922900312,1.57643593,2494.2,2494.1,7.60697]
[1750922900615,0.52097,2494.2,2494.1,7.60697]
[1750922900813,0.52097,2494.2,2494.1,0.52097]
[1750922903512,1.57650538,2494.2,2494.1,0.52097]
[1750922904212,0.52097,2494.2,2494.1,0.52097]
[1750922904815,1.57654377,2494.2,2494.1,0.52097]
[1750922905307,1.05557377,2494.2,2494.1,0.52097]
[1750922905614,0.52096,2494.3,2494.2,0.52097]
[1750922905805,1.05572184,2494.3,2494.2,0.52097]
[1750922906203,1.57667184,2494.3,2494.2,0.52097]
[1750922906712,1.05572184,2494.3,2494.2,0.52097]
[1750922906913,0.52091,2494.5,2494.4,0.52093]
[1750922907122,1.57675131,2494.5,2494.4,0.52093]
[1750922907615,1.57675131,2494.5,2494.4,1.20453]
[1750922908816,1.05584131,2494.5,2494.4,1.20453]
[1750922911916,0.52085,2494.8,2494.7,0.52086]
[1750922912216,1.57303831,2494.8,2494.7,0.52086]
[1750922912618,1.05218831,2494.8,2494.7,0.52086]
[1750922912823,1.05218831,2494.8,2494.7,1.89886]
[1750922913812,0.52084,2494.9,2494.7,1.378]
[1750922914112,0.52084,2494.9,2494.8,1.19484]
[1750922914311,1.57265708,2494.9,2494.8,1.19484]
[1750922917615,1.57263708,2494.9,2494.8,1.19484]
[1750922918822,1.05181708,2494.9,2494.8,1.19484]
[1750922919220,1.57263708,2494.9,2494.8,1.19484]
[1750922919723,1.05181708,2494.9,2494.8,1.19484]
[1750922920120,1.57263708,2494.9,2494.8,1.19484]
[1750922920326,4.11743112,2494.9,2494.8,1.19484]
[1750922921525,1.57263708,2494.9,2494.8,1.19484]
[1750922926827,1.05181708,2494.9,2494.8,1.19484]
[1750922927520,0.6653,2495.0,2494.9,0.52082]
[1750922927740,1.71515995,2495.0,2494.9,0.52082]
[1750922928529,2.23595995,2495.0,2494.9,0.52082]
[1750922931431,3.54785995,2495.0,2494.9,0.52082]
[1750922932132,0.52086,2494.8,2494.7,0.52083]
[1750922932324,3.06565404,2494.8,2494.7,0.52083]
[1750922933430,4.11597857,2494.8,2494.7,0.52083]
[1750922933634,0.52084,2494.9,2494.8,0.52084]
[1750922933836,1.57117002,2494.9,2494.8,0.52084]
[1750922934129,1.05033002,2494.9,2494.8,0.52084]
[1750922934332,0.6653,2495.0,2494.9,0.52082]
[1750922934533,1.7158012,2495.0,2494.9,0.52082]
[1750922934725,2.2366012,2495.0,2494.9,0.52082]
[1750922935130,1.7158012,2495.0,2494.9,0.52082]
[1750922938728,1.0505012,2495.0,2494.9,0.52082]
[1750922939125,1.0505012,2495.0,2494.9,3.33652]
[1750922939323,0.7203,2495.3,2495.2,0.52076]
[1750922939529,1.77004618,2495.3,2495.2,0.52076]
[1750922940131,1.04974618,2495.3,2495.2,0.52076]
[1750922940334,1.04974618,2495.3,2495.2,3.06555404]
[1750922940637,3.2078,2496.0,2495.9,0.52061]
[1750922941739,3.9281,2496.3,2496.2,0.52055]
[1750922942035,4.44863,2496.3,2496.2,0.52055]
[1750922943235,5.81013,2496.3,2496.2,0.52055]
[1750922943640,10.2896,2496.3,2495.5,3.2078]
[1750922943836,2.54479404,2495.7,2495.5,3.2078]
[1750922944029,2.54479404,2495.7,2495.5,0.52068]
[1750922944030,1.2238,2495.6,2495.5,0.52068]
[1750922944738,0.52073,2495.4,2495.3,0.52071]
[1750922945733,0.52076,2495.2,2495.1,0.52076]
[1750922945934,0.5208,2495.1,2495.0,0.52079]
[1750922946931,0.5208,2495.0,2494.9,3.72861]
[1750922947135,0.5208,2495.0,2494.9,3.2078]
[1750922947339,3.2078,2495.0,2494.5,3.2078]
[1750922947537,0.52086,2494.8,2494.7,0.52085]
[1750922947942,0.6529,2494.9,2494.8,0.52084]
[1750922949442,1.17372,2494.9,2494.8,0.52084]
[1750922951048,1.30213,2494.8,2494.3,0.52094]
[1750922951341,3.06574404,2494.4,2494.3,0.52094]
[1750922951844,0.521,2494.1,2494.0,0.52099]
[1750922953645,0.52105,2493.9,2493.8,0.52104]
[1750922954047,0.52105,2493.9,2493.6,5.2287]
[1750922954048,3.92199404,2494.2,2493.6,4.51052]
[1750922954246,0.521,2494.1,2494.0,0.52099]
[1750922956147,3.06577404,2494.2,2494.1,0.52099]
[1750922957150,0.7009,2494.3,2494.2,0.52097]
[1750922957347,0.52092,2494.5,2494.4,0.52091]
[1750922957952,6.27349404,2494.6,2494.5,0.52091]
[1750922958346,3.7287,2494.6,2494.5,0.52091]
[1750922959054,3.2078,2494.6,2494.5,0.52091]
[1750922959255,0.6493,2494.7,2494.6,0.52089]
[1750922959449,0.52086,2494.8,2494.7,0.52086]
[1750922959754,1.56082858,2494.8,2494.7,0.52086]
[1750922961653,0.52089,2494.7,2494.6,0.52087]
[1750922961844,3.06568404,2494.7,2494.6,0.52087]
[1750922964052,3.06567404,2494.7,2494.6,0.52089]
[1750922964846,2.54479404,2494.7,2494.6,0.52089]
[1750922965352,3.06565404,2494.7,2494.5,0.52089]
[1750922965552,3.2078,2494.6,2494.3,0.6602]
[1750922965854,2.54479404,2494.5,2494.2,3.2078]
[1750922966051,2.54479404,2494.5,2494.3,0.52094]
[1750922966052,3.06571404,2494.5,2494.3,0.52094]
[1750922966253,0.52093,2494.4,2494.3,0.52094]
[1750922966455,3.06571404,2494.5,2494.3,0.52094]
[1750922966652,0.52093,2494.4,2494.3,0.52094]
[1750922966853,2.54479404,2494.5,2494.3,0.52094]
[1750922967161,3.06571404,2494.5,2494.3,0.52094]
[1750922967455,0.52093,2494.4,2494.3,0.52094]
[1750922967657,3.06571404,2494.5,2494.2,3.2078]
[1750922967860,3.06571404,2494.5,2494.3,0.52093]
[1750922968049,3.06570404,2494.5,2494.4,0.52093]
[1750922968250,2.54479404,2494.5,2494.4,0.52093]
[1750922968651,3.06570404,2494.5,2494.4,0.52093]
[1750922968852,2.54479404,2494.5,2494.4,0.52093]
[1750922969153,3.2078,2494.6,2494.5,0.52091]
[1750922971257,3.72869,2494.6,2494.4,0.52091]
[1750922971458,3.06570404,2494.5,2494.4,0.52091]
[1750922971858,0.52093,2494.4,2494.3,0.52093]
[1750922972056,3.23349404,2494.5,2494.3,0.52093]
[1750922972252,3.75441404,2494.5,2494.3,0.52093]
[1750922972458,3.75441404,2494.5,2494.4,0.52093]
[1750922972659,3.75441404,2494.5,2494.3,0.52093]
[1750922972862,3.75441404,2494.5,2494.4,0.52093]
[1750922976753,4.79534521,2494.5,2494.1,3.34808]
[1750922976958,0.52093,2494.4,2494.3,0.52094]
[1750922977264,3.75441404,2494.5,2494.4,0.52093]
[1750922977464,4.79576196,2494.5,2494.4,0.52093]
[1750922977668,4.27484196,2494.5,2494.4,0.52093]
[1750922977861,4.79575196,2494.5,2494.4,0.52093]
[1750922978366,4.79575196,2494.5,2494.1,3.34808]
[1750922978367,0.52093,2494.4,2494.3,0.52094]
[1750922978564,1.04134792,2494.4,2494.3,0.52094]
[1750922978765,1.56227792,2494.4,2494.3,0.52094]
[1750922980266,1.04134792,2494.4,2494.3,0.52094]
[1750922981672,1.04134792,2494.4,2494.0,1.96783]
[1750922981869,4.10708196,2494.4,2494.3,0.52095]
[1750922982266,3.58614196,2494.4,2494.1,1.21228]
[1750922982572,1.04134792,2494.3,2494.2,0.52097]
[1750922982764,1.20961,2494.5,2494.2,1.4208]
[1750922982968,1.04245501,2494.4,2494.3,0.52095]
[1750922983264,1.56338501,2494.4,2494.3,0.52095]
[1750922984275,1.04245501,2494.4,2494.3,0.52095]
[1750922986174,1.04245501,2494.4,2494.3,8.06574404]
[1750922986376,1.04245501,2494.4,2494.3,9.37404404]
[1750922986568,1.04245501,2494.4,2494.3,6.82925]
[1750922986768,3.2078,2494.6,2494.5,0.52091]
[1750922986967,4.25083346,2494.6,2494.5,0.52091]
[1750922990479,3.2078,2494.9,2494.8,0.52084]
[1750922991387,3.2078,2495.2,2495.1,0.52077]
[1750922992278,3.2078,2495.2,2495.0,1.17759]
[1750922992583,3.72856,2495.2,2495.0,1.17759]
[1750922992780,0.52078,2495.1,2495.0,0.6568]
[1750922993180,2.54479404,2495.1,2494.6,1.98468]
[1750922993385,5.75259404,2494.9,2494.8,0.52084]
[1750922993880,0.52085,2494.8,2494.6,1.17767]
[1750922994079,6.95173404,2494.9,2494.7,0.52087]
[1750922994284,8.37083404,2494.9,2494.7,0.52087]
[1750922994486,7.84999404,2494.9,2494.7,0.52087]
[1750922994688,6.43089404,2494.9,2494.8,0.52084]
[1750922994998,3.8861,2494.9,2494.8,0.52084]
[1750922996285,0.6783,2494.9,2494.8,0.52084]
[1750922996490,0.6496,2495.0,2494.9,0.52082]
[1750922997090,1.1704,2495.0,2494.9,0.52082]
[1750922997686,0.6496,2495.0,2494.9,0.52082]
[1750923000292,26.6314,2495.0,2494.8,0.52083]
[1750923000486,26.1106,2495.0,2494.7,1.4177]
[1750923000691,25.457,2495.0,2494.9,0.52082]
[1750923001392,25.97781,2495.0,2494.7,1.4177]
[1750923001593,3.19579404,2494.9,2494.8,0.52083]
[1750923002294,3.71661404,2494.9,2494.7,0.52085]
[1750923002487,0.651,2494.9,2494.8,0.52084]
[1750923002900,3.19579404,2494.9,2494.7,0.52086]
[1750923003091,3.71663404,2494.9,2494.7,0.52086]
[1750923003492,1.03544219,2494.8,2494.7,0.52086]
[1750923004592,3.19579404,2494.9,2494.8,0.52084]
[1750923004785,1.03537963,2494.9,2494.8,0.52084]
[1750923005589,3.58017367,2494.9,2494.8,0.52084]
[1750923006000,3.58017367,2494.9,2494.7,0.52085]